[Event "EYCC Girls U10 2021"]
[Site "Tornelo"]
[Date "2021.10.15"]
[Round "1.1"]
[White "Polakiewicz, Blanka"]
[Black "Preobrazhenskaya, Diana"]
[Result "0-1"]
[ECO "B92"]
[WhiteElo "1130"]
[BlackElo "1764"]
[Annotator "NA"]
[PlyCount "50"]
[EventDate "2021.10.15"]
[EventType "swiss"]
[EventCountry "NET"]
[SourceTitle "playchess.com"]
[Source "ChessBase"]
[SourceQuality "1"]
[TimeControl "5400+30"]

1. e4 {[%emt 0:00:30]} c5 {[%emt 0:00:36]} 2. Nf3 {[%emt 0:00:10]} d6 {[%emt 0:00:14]} 3. d4 {[%emt 0:00:19]} Nf6 {[%emt 0:00:09]} 4. Nc3 {[%emt 0:00:49]} cxd4 {[%emt 0:00:06]} 5. Nxd4 {[%emt 0:00:19]} a6 {[%emt 0:00:16]} 6. Be2 {[%emt 0:01:45]} e5 {[%emt 0:00:21]} 7. Nf3 {[%emt 0:00:38]} Be7 {[%emt 0:00:35]} 8. h3 {[%emt 0:00:54]} O-O {[%emt 0:00:29]} 9. Be3 {[%emt 0:02:00]} Nbd7 {[%emt 0:02:47]} 10. Qd2 {[%emt 0:04:07]} b5 {[%emt 0:00:56]} 11. a3 {[%emt 0:00:55]} Bb7 {[%emt 0:00:58]} 12. Bd3 {[%emt 0:00:46]} Qc7 {[%emt 0:01:42]} 13. Rc1 {[%emt 0:03:24]} Nc5 {[%emt 0:03:05]} 14. Bxc5 {[%emt 0:04:23]} dxc5 {[%emt 0:00:22]} 15. b3 {[%emt 0:07:03]} c4 {[%emt 0:01:34]} 16. bxc4 {[%emt 0:02:43]} bxc4 {[%emt 0:00:35]} 17. Bf1 {[%emt 0:02:02]} Bxa3 {[%emt 0:02:30]} 18. Rb1 {[%emt 0:02:42]} Rad8 {[%emt 0:06:42]} 19. Qe3 {[%emt 0:04:17]} Bc5 {[%emt 0:02:44]} 20. Qe2 {[%emt 0:09:10]} Qa5 {[%emt 0:01:20]} 21. Qxc4 {[%emt 0:02:48]} Nxe4 {[%emt 0:01:35]} 22. Rxb7 {[%emt 0:01:51]} Nxc3 {[%emt 0:04:57]} 23. Nd2 {[%emt 0:04:06]} Qa1+ {[%emt 0:00:30]} 24. Rb1 {[%emt 0:00:32]} Qxb1+ {[%emt 0:00:06]} 25. Nxb1 {[%emt 0:00:09]} Rd1# {[%emt 0:00:03]} 0-1

[Event "EYCC Girls U10 2021"]
[Site "Tornelo"]
[Date "2021.10.15"]
[Round "1.2"]
[White "Beber, Anja"]
[Black "Ashotia, Barbare"]
[Result "1-0"]
[ECO "D10"]
[WhiteElo "1552"]
[BlackElo "1128"]
[Annotator "NA"]
[PlyCount "155"]
[EventDate "2021.10.15"]
[EventType "swiss"]
[EventCountry "NET"]
[SourceTitle "playchess.com"]
[Source "ChessBase"]
[SourceQuality "1"]
[TimeControl "5400+30"]

1. d4 {[%emt 0:00:30]} d5 {[%emt 0:00:36]} 2. c4 {[%emt 0:00:13]} c6 {[%emt 0:00:08]} 3. cxd5 {[%emt 0:00:05]} cxd5 {[%emt 0:00:06]} 4. Nc3 {[%emt 0:00:09]} Nf6 {[%emt 0:00:14]} 5. Bf4 {[%emt 0:00:22]} Nc6 {[%emt 0:00:34]} 6. e3 {[%emt 0:00:22]} Bf5 {[%emt 0:00:20]} 7. Qb3 {[%emt 0:00:20]} Qd7 {[%emt 0:01:01]} 8. Nf3 {[%emt 0:00:56]} a6 {[%emt 0:06:12]} 9. Ne5 {[%emt 0:02:40]} Nxe5 {[%emt 0:03:26]} 10. dxe5 {[%emt 0:01:23]} Ne4 {[%emt 0:01:03]} 11. Qxd5 {[%emt 0:01:51]} Nxc3 {[%emt 0:02:39]} 12. Qxd7+ {[%emt 0:00:19]} Bxd7 {[%emt 0:00:10]} 13. bxc3 {[%emt 0:00:05]} e6 {[%emt 0:00:19]} 14. Be2 {[%emt 0:01:45]} Rc8 {[%emt 0:01:32]} 15. Kd2 {[%emt 0:01:14]} Ba3 {[%emt 0:00:56]} 16. Rab1 {[%emt 0:00:21]} Bc6 {[%emt 0:03:24]} 17. Bf3 {[%emt 0:00:44]} Bxf3 {[%emt 0:00:17]} 18. gxf3 {[%emt 0:00:02]} Rc7 {[%emt 0:01:52]} 19. Rhg1 {[%emt 0:00:54]} O-O {[%emt 0:02:29]} 20. Bh6 {[%emt 0:03:54]} Rd8+ {[%emt 0:00:18]} 21. Kc2 {[%emt 0:00:34]} g6 {[%emt 0:00:39]} 22. Rgd1 {[%emt 0:00:53]} Rdc8 {[%emt 0:01:14]} 23. Rb3 {[%emt 0:00:07]} Be7 {[%emt 0:00:38]} 24. e4 {[%emt 0:03:26]} b5 {[%emt 0:03:30]} 25. Kb2 {[%emt 0:03:33]} Bf8 {[%emt 0:05:50]} 26. Bxf8 {[%emt 0:02:22]} Kxf8 {[%emt 0:00:08]} 27. f4 {[%emt 0:00:03]} Kg7 {[%emt 0:01:52]} 28. Rd3 {[%emt 0:00:47]} Rc4 {[%emt 0:01:25]} 29. f3 {[%emt 0:00:38]} R4c5 {[%emt 0:01:21]} 30. Kc2 {[%emt 0:03:17]} h6 {[%emt 0:01:25]} 31. h4 {[%emt 0:00:14]} R8c7 {[%emt 0:00:50]} 32. Kd2 {[%emt 0:00:22]} g5 {[%emt 0:02:06]} 33. fxg5 {[%emt 0:00:58]} hxg5 {[%emt 0:00:12]} 34. hxg5 {[%emt 0:00:04]} Rxe5 {[%emt 0:00:46]} 35. Rd6 {[%emt 0:00:29]} Ra7 {[%emt 0:00:52]} 36. Ra3 {[%emt 0:02:05]} a5 {[%emt 0:00:18]} 37. Rb6 {[%emt 0:02:03]} Rxg5 {[%emt 0:02:39]} 38. Ke3 {[%emt 0:00:10]} Rc7 {[%emt 0:05:39]} 39. Kf4 {[%emt 0:03:06]} Rcc5 {[%emt 0:11:50]} 40. Rxa5 {[%emt 0:00:43]} Rh5 {[%emt 0:01:38]} 41. Ra3 {[%emt 0:00:23]} Rc4 {[%emt 0:01:24]} 42. Rb3 {[%emt 0:00:42]} Rcc5 {[%emt 0:00:27]} 43. Ra6 {[%emt 0:01:40]} Kf6 {[%emt 0:01:55]} 44. a4 {[%emt 0:00:29]} bxa4 {[%emt 0:01:00]} 45. Rxa4 {[%emt 0:00:06]} Ra5 {[%emt 0:01:44]} 46. Rab4 {[%emt 0:00:38]} Rac5 {[%emt 0:01:24]} 47. c4 {[%emt 0:00:10]} Rh2 {[%emt 0:01:28]} 48. Ke3 {[%emt 0:01:21]} e5 {[%emt 0:01:06]} 49. Rc3 {[%emt 0:01:40]} Rh8 {[%emt 0:00:54]} 50. Rb6+ {[%emt 0:01:17]} Kg7 {[%emt 0:01:18]} 51. Rc2 {[%emt 0:01:24]} Rhc8 {[%emt 0:01:04]} 52. Kd3 {[%emt 0:00:46]} R8c7 {[%emt 0:01:12]} 53. Rb5 {[%emt 0:00:49]} f6 {[%emt 0:00:59]} 54. Rxc5 {[%emt 0:00:22]} Rxc5 {[%emt 0:00:07]} 55. Kc3 {[%emt 0:00:02]} Kf7 {[%emt 0:00:06]} 56. Kb4 {[%emt 0:00:03]} Rc8 {[%emt 0:00:07]} 57. c5 {[%emt 0:00:04]} Ke7 {[%emt 0:00:09]} 58. Kc4 {[%emt 0:00:37]} Rc6 {[%emt 0:01:09]} 59. Kb5 {[%emt 0:00:23]} Kd7 {[%emt 0:00:06]} 60. Rd2+ {[%emt 0:00:07]} Kc7 {[%emt 0:00:07]} 61. Ra2 {[%emt 0:00:22]} Re6 {[%emt 0:01:54]} 62. Ra7+ {[%emt 0:00:18]} Kc8 {[%emt 0:01:02]} 63. Ra6 {[%emt 0:00:37]} Re7 {[%emt 0:02:32]} 64. Rxf6 {[%emt 0:00:07]} Kc7 {[%emt 0:00:44]} 65. Ra6 {[%emt 0:00:38]} Kb8 {[%emt 0:01:05]} 66. Ra3 {[%emt 0:01:52]} Rd7 {[%emt 0:02:11]} 67. c6 {[%emt 0:00:08]} Rd2 {[%emt 0:01:43]} 68. Kc5 {[%emt 0:00:23]} Kc7 {[%emt 0:01:05]} 69. Ra7+ {[%emt 0:00:12]} Kb8 {[%emt 0:01:30]} 70. Rd7 {[%emt 0:00:18]} Rf2 {[%emt 0:00:43]} 71. Kd6 {[%emt 0:00:13]} Rxf3 {[%emt 0:04:54]} 72. c7+ {[%emt 0:01:35]} Kb7 {[%emt 0:00:14]} 73. Rd8 {[%emt 0:00:40]} Rc3 {[%emt 0:01:49]} 74. Rb8+ {[%emt 0:00:19]} Ka7 {[%emt 0:00:53]} 75. c8=Q {[%emt 0:00:07]} Rd3+ {[%emt 0:00:35]} 76. Kxe5 {[%emt 0:00:24]} Rd5+ {[%emt 0:00:09]} 77. Kf4 {[%emt 0:00:02]} Rb5 {[%emt 0:01:20]} 78. Qc7+ {[%emt 0:00:24]} 1-0

[Event "EYCC Girls U10 2021"]
[Site "Tornelo"]
[Date "2021.10.15"]
[Round "1.3"]
[White "Berezovskaya, Arina"]
[Black "Timagina, Sofia"]
[Result "1-0"]
[ECO "C60"]
[WhiteElo "1102"]
[BlackElo "1472"]
[Annotator "NA"]
[PlyCount "49"]
[EventDate "2021.10.15"]
[EventType "swiss"]
[EventCountry "NET"]
[SourceTitle "playchess.com"]
[Source "ChessBase"]
[SourceQuality "1"]
[TimeControl "5400+30"]

1. e4 {[%emt 0:00:30]} e5 {[%emt 0:00:35]} 2. Nf3 {[%emt 0:00:08]} Nc6 {[%emt 0:00:04]} 3. Bb5 {[%emt 0:00:06]} Nge7 {[%emt 0:00:05]} 4. Nc3 {[%emt 0:00:07]} Ng6 {[%emt 0:00:43]} 5. d3 {[%emt 0:00:23]} a6 {[%emt 0:01:55]} 6. Ba4 {[%emt 0:00:20]} Bc5 {[%emt 0:01:20]} 7. O-O {[%emt 0:00:17]} O-O {[%emt 0:00:17]} 8. Bb3 {[%emt 0:00:49]} d6 {[%emt 0:00:39]} 9. Bg5 {[%emt 0:00:15]} Qe8 {[%emt 0:00:52]} 10. Nd5 {[%emt 0:00:26]} Qd7 {[%emt 0:04:10]} 11. h3 {[%emt 0:01:21]} h6 {[%emt 0:00:32]} 12. Bxh6 {[%emt 0:02:06]} Nce7 {[%emt 0:03:47]} 13. Nxe7+ {[%emt 0:01:01]} Qxe7 {[%emt 0:00:18]} 14. Bg5 {[%emt 0:00:29]} Qe8 {[%emt 0:00:23]} 15. Nh4 {[%emt 0:01:49]} Nxh4 {[%emt 0:01:24]} 16. Bxh4 {[%emt 0:00:09]} Be6 {[%emt 0:00:38]} 17. Bxe6 {[%emt 0:00:31]} Qxe6 {[%emt 0:00:14]} 18. c3 {[%emt 0:01:57]} Qg6 {[%emt 0:00:48]} 19. Qd2 {[%emt 0:02:37]} Rae8 {[%emt 0:00:24]} 20. Qg5 {[%emt 0:00:56]} Qe6 {[%emt 0:01:16]} 21. Qg3 {[%emt 0:02:42]} d5 {[%emt 0:01:18]} 22. exd5 {[%emt 0:00:33]} Qxd5 {[%emt 0:00:19]} 23. Bf6 {[%emt 0:00:52]} g6 {[%emt 0:06:00]} 24. Qh4 {[%emt 0:00:48]} Be7 {[%emt 0:02:58]} 25. Qh8# {[%emt 0:00:12]} 1-0

[Event "EYCC Girls U10 2021"]
[Site "Tornelo"]
[Date "2021.10.15"]
[Round "1.4"]
[White "Figa, Karolina"]
[Black "Kuzmina, Sofya Vl"]
[Result "0-1"]
[ECO "E90"]
[WhiteElo "1411"]
[BlackElo "1102"]
[Annotator "NA"]
[PlyCount "120"]
[EventDate "2021.10.15"]
[EventType "swiss"]
[EventCountry "NET"]
[SourceTitle "playchess.com"]
[Source "ChessBase"]
[SourceQuality "1"]
[TimeControl "5400+30"]

1. d4 {[%emt 0:00:30]} Nf6 {[%emt 0:00:40]} 2. c4 {[%emt 0:00:06]} c5 {[%emt 0:00:27]} 3. d5 {[%emt 0:00:09]} d6 {[%emt 0:00:15]} 4. Nc3 {[%emt 0:00:17]} g6 {[%emt 0:00:50]} 5. Nf3 {[%emt 0:00:21]} Bg7 {[%emt 0:00:24]} 6. e4 {[%emt 0:00:31]} O-O {[%emt 0:00:29]} 7. Bf4 {[%emt 0:00:25]} Qa5 {[%emt 0:02:31]} 8. Bd3 {[%emt 0:00:45]} Nh5 {[%emt 0:05:35]} 9. Bd2 {[%emt 0:01:40]} Qb6 {[%emt 0:01:42]} 10. Qc2 {[%emt 0:02:23]} Na6 {[%emt 0:02:07]} 11. a3 {[%emt 0:01:31]} Nc7 {[%emt 0:01:19]} 12. Na4 {[%emt 0:02:45]} Qa6 {[%emt 0:00:42]} 13. Rb1 {[%emt 0:04:50]} b5 {[%emt 0:01:30]} 14. cxb5 {[%emt 0:01:18]} Qb7 {[%emt 0:01:39]} 15. b4 {[%emt 0:06:11]} cxb4 {[%emt 0:04:24]} 16. Bxb4 {[%emt 0:01:44]} Bd7 {[%emt 0:01:29]} 17. Bc3 {[%emt 0:02:05]} e5 {[%emt 0:06:28]} 18. Ba5 {[%emt 0:06:26]} Rac8 {[%emt 0:02:36]} 19. Qb3 {[%emt 0:02:34]} Nf4 {[%emt 0:01:27]} 20. Bf1 {[%emt 0:00:51]} f5 {[%emt 0:02:56]} 21. Bxc7 {[%emt 0:03:23]} Qxc7 {[%emt 0:00:32]} 22. Nd2 {[%emt 0:01:39]} fxe4 {[%emt 0:02:40]} 23. Nxe4 {[%emt 0:01:20]} Bf5 {[%emt 0:01:05]} 24. f3 {[%emt 0:00:57]} Bxe4 {[%emt 0:02:56]} 25. fxe4 {[%emt 0:00:16]} Qf7 {[%emt 0:01:10]} 26. Qf3 {[%emt 0:02:59]} Rc2 {[%emt 0:01:36]} 27. g3 {[%emt 0:03:51]} Ng2+ {[%emt 0:04:56]} 28. Bxg2 {[%emt 0:01:38]} Qxf3 {[%emt 0:00:43]} 29. Bxf3 {[%emt 0:00:10]} Rxf3 {[%emt 0:00:05]} 30. Kd1 {[%emt 0:04:58]} Rc4 {[%emt 0:01:10]} 31. Nb2 {[%emt 0:03:14]} Rd4+ {[%emt 0:00:15]} 32. Kc2 {[%emt 0:01:03]} Bh6 {[%emt 0:01:57]} 33. Rbd1 {[%emt 0:02:44]} Rxe4 {[%emt 0:01:49]} 34. Rd3 {[%emt 0:02:24]} Re2+ {[%emt 0:01:26]} 35. Kb3 {[%emt 0:04:29]} Rxb2+ {[%emt 0:00:15]} 36. Kxb2 {[%emt 0:01:34]} Rxd3 {[%emt 0:00:24]} 37. Kc2 {[%emt 0:00:54]} Rxd5 {[%emt 0:00:41]} 38. Rb1 {[%emt 0:00:33]} e4 {[%emt 0:00:37]} 39. b6 {[%emt 0:00:11]} axb6 {[%emt 0:00:08]} 40. Rxb6 {[%emt 0:00:05]} e3 {[%emt 0:00:16]} 41. Rb8+ {[%emt 0:00:22]} Kf7 {[%emt 0:00:16]} 42. Rb7+ {[%emt 0:00:15]} Kf6 {[%emt 0:00:41]} 43. Rb1 {[%emt 0:00:18]} Rd2+ {[%emt 0:00:16]} 44. Kc3 {[%emt 0:00:05]} e2 {[%emt 0:00:30]} 45. Re1 {[%emt 0:00:09]} Ra2 {[%emt 0:00:40]} 46. Kb3 {[%emt 0:00:11]} Rd2 {[%emt 0:00:31]} 47. Kc3 {[%emt 0:00:06]} d5 {[%emt 0:00:13]} 48. g4 {[%emt 0:00:14]} d4+ {[%emt 0:00:10]} 49. Kc4 {[%emt 0:00:02]} d3 {[%emt 0:00:26]} 50. h4 {[%emt 0:00:04]} Rc2+ {[%emt 0:00:17]} 51. Kxd3 {[%emt 0:00:06]} Rd2+ {[%emt 0:00:28]} 52. Kc3 {[%emt 0:00:06]} Bf4 {[%emt 0:00:35]} 53. a4 {[%emt 0:00:24]} Ke5 {[%emt 0:00:44]} 54. a5 {[%emt 0:00:31]} Ke4 {[%emt 0:00:39]} 55. a6 {[%emt 0:00:13]} Ke3 {[%emt 0:00:34]} 56. a7 {[%emt 0:00:09]} Ra2 {[%emt 0:00:06]} 57. Kb3 {[%emt 0:00:21]} Rxa7 {[%emt 0:00:05]} 58. Rh1 {[%emt 0:00:13]} Bg3 {[%emt 0:00:19]} 59. Kc2 {[%emt 0:00:06]} e1=Q {[%emt 0:00:17]} 60. Rxe1+ {[%emt 0:00:24]} Bxe1 {[%emt 0:00:07]} 0-1

[Event "EYCC Girls U10 2021"]
[Site "Tornelo"]
[Date "2021.10.15"]
[Round "1.5"]
[White "Kochanowska, Patrycja"]
[Black "Asachenko, Ksenia"]
[Result "0-1"]
[ECO "B43"]
[WhiteElo "1089"]
[BlackElo "1382"]
[Annotator "NA"]
[PlyCount "110"]
[EventDate "2021.10.15"]
[EventType "swiss"]
[EventCountry "NET"]
[SourceTitle "playchess.com"]
[Source "ChessBase"]
[SourceQuality "1"]
[TimeControl "5400+30"]

1. e4 {[%emt 0:00:30]} c5 {[%emt 0:00:36]} 2. Nf3 {[%emt 0:00:17]} e6 {[%emt 0:00:04]} 3. d4 {[%emt 0:00:12]} cxd4 {[%emt 0:00:04]} 4. Nxd4 {[%emt 0:00:16]} a6 {[%emt 0:00:03]} 5. Nc3 {[%emt 0:00:12]} Qc7 {[%emt 0:00:06]} 6. Bd2 {[%emt 0:00:13]} Nf6 {[%emt 0:00:19]} 7. Bd3 {[%emt 0:00:12]} Be7 {[%emt 0:00:26]} 8. O-O {[%emt 0:00:19]} d6 {[%emt 0:00:36]} 9. Kh1 {[%emt 0:01:06]} Nbd7 {[%emt 0:00:45]} 10. f4 {[%emt 0:00:51]} b5 {[%emt 0:02:57]} 11. a3 {[%emt 0:00:51]} Bb7 {[%emt 0:00:37]} 12. Qe2 {[%emt 0:00:46]} h5 {[%emt 0:16:08]} 13. Rae1 {[%emt 0:02:19]} h4 {[%emt 0:11:40]} 14. h3 {[%emt 0:00:42]} Nh5 {[%emt 0:01:30]} 15. Kg1 {[%emt 0:02:22]} Ng3 {[%emt 0:01:00]} 16. Qf3 {[%emt 0:00:36]} Nxf1 {[%emt 0:00:43]} 17. Qxf1 {[%emt 0:00:08]} Bf6 {[%emt 0:03:26]} 18. Qf2 {[%emt 0:03:33]} Bxd4 {[%emt 0:04:47]} 19. Qxd4 {[%emt 0:00:19]} Qc5 {[%emt 0:01:03]} 20. Be3 {[%emt 0:00:25]} Qxd4 {[%emt 0:03:04]} 21. Bxd4 {[%emt 0:00:33]} e5 {[%emt 0:01:27]} 22. fxe5 {[%emt 0:00:09]} dxe5 {[%emt 0:00:19]} 23. Bf2 {[%emt 0:00:21]} g5 {[%emt 0:02:39]} 24. Nd5 {[%emt 0:01:09]} O-O {[%emt 0:03:48]} 25. c4 {[%emt 0:01:18]} bxc4 {[%emt 0:03:37]} 26. Bxc4 {[%emt 0:00:12]} Kg7 {[%emt 0:02:10]} 27. Be3 {[%emt 0:00:53]} Rac8 {[%emt 0:03:35]} 28. Bb3 {[%emt 0:00:22]} Nc5 {[%emt 0:03:33]} 29. Bxc5 {[%emt 0:01:29]} Rxc5 {[%emt 0:00:30]} 30. Ba2 {[%emt 0:01:58]} Rc2 {[%emt 0:01:59]} 31. Rb1 {[%emt 0:00:26]} Rfc8 {[%emt 0:01:31]} 32. Nc3 {[%emt 0:01:07]} Rd8 {[%emt 0:01:59]} 33. Bb3 {[%emt 0:00:37]} Rcd2 {[%emt 0:01:21]} 34. Nd5 {[%emt 0:02:00]} Re2 {[%emt 0:01:35]} 35. Nc3 {[%emt 0:00:23]} Bxe4 {[%emt 0:01:48]} 36. Nxe2 {[%emt 0:00:41]} Bxb1 {[%emt 0:00:07]} 37. Kf2 {[%emt 0:00:15]} Rd2 {[%emt 0:00:21]} 38. Bc4 {[%emt 0:00:39]} Rxb2 {[%emt 0:01:23]} 39. Bxa6 {[%emt 0:00:10]} Ra2 {[%emt 0:00:34]} 40. a4 {[%emt 0:00:29]} Rxa4 {[%emt 0:00:40]} 41. Nc3 {[%emt 0:00:11]} Rxa6 {[%emt 0:00:18]} 42. Nxb1 {[%emt 0:00:25]} Ra2+ {[%emt 0:00:09]} 43. Kf3 {[%emt 0:00:06]} Rb2 {[%emt 0:00:15]} 44. Ke4 {[%emt 0:00:16]} Rxb1 {[%emt 0:00:10]} 45. Kxe5 {[%emt 0:00:05]} Rg1 {[%emt 0:00:29]} 46. Kf5 {[%emt 0:00:13]} Rxg2 {[%emt 0:00:05]} 47. Ke4 {[%emt 0:00:50]} Rg3 {[%emt 0:00:19]} 48. Kf5 {[%emt 0:00:10]} f6 {[%emt 0:00:12]} 49. Ke4 {[%emt 0:00:15]} Rxh3 {[%emt 0:00:05]} 50. Kf5 {[%emt 0:00:14]} Rg3 {[%emt 0:00:11]} 51. Ke4 {[%emt 0:00:07]} h3 {[%emt 0:00:04]} 52. Kd4 {[%emt 0:00:08]} h2 {[%emt 0:00:05]} 53. Ke4 {[%emt 0:00:05]} h1=Q+ {[%emt 0:00:09]} 54. Kd4 {[%emt 0:00:05]} Qd1+ {[%emt 0:00:07]} 55. Ke4 {[%emt 0:00:06]} Qd3# {[%emt 0:00:06]} 0-1

[Event "EYCC Girls U10 2021"]
[Site "Tornelo"]
[Date "2021.10.15"]
[Round "1.6"]
[White "Lajdamik, Kinga"]
[Black "Kuznetsova, Ekaterina A"]
[Result "1-0"]
[ECO "C01"]
[WhiteElo "1367"]
[BlackElo "1085"]
[Annotator "NA"]
[PlyCount "65"]
[EventDate "2021.10.15"]
[EventType "swiss"]
[EventCountry "NET"]
[SourceTitle "playchess.com"]
[Source "ChessBase"]
[SourceQuality "1"]
[TimeControl "5400+30"]

1. e4 {[%emt 0:00:30]} e6 {[%emt 0:00:41]} 2. d4 {[%emt 0:00:09]} d5 {[%emt 0:00:06]} 3. Nc3 {[%emt 0:00:10]} Bb4 {[%emt 0:00:32]} 4. exd5 {[%emt 0:00:14]} exd5 {[%emt 0:00:16]} 5. Bd3 {[%emt 0:00:10]} Nf6 {[%emt 0:00:31]} 6. Nf3 {[%emt 0:00:19]} Bg4 {[%emt 0:00:16]} 7. O-O {[%emt 0:00:23]} O-O {[%emt 0:00:18]} 8. h3 {[%emt 0:00:18]} Bh5 {[%emt 0:00:26]} 9. g4 {[%emt 0:00:36]} Bg6 {[%emt 0:00:30]} 10. Ne5 {[%emt 0:00:09]} Bxd3 {[%emt 0:00:44]} 11. Qxd3 {[%emt 0:00:09]} Nbd7 {[%emt 0:00:19]} 12. Bg5 {[%emt 0:01:50]} h6 {[%emt 0:01:43]} 13. Bh4 {[%emt 0:00:22]} Be7 {[%emt 0:03:17]} 14. f4 {[%emt 0:02:27]} c5 {[%emt 0:00:53]} 15. Ne2 {[%emt 0:04:08]} c4 {[%emt 0:04:13]} 16. Qf3 {[%emt 0:02:12]} Ne4 {[%emt 0:00:56]} 17. Bxe7 {[%emt 0:05:19]} Qxe7 {[%emt 0:00:46]} 18. Rad1 {[%emt 0:00:26]} Nxe5 {[%emt 0:02:23]} 19. dxe5 {[%emt 0:01:26]} Rad8 {[%emt 0:01:44]} 20. Nd4 {[%emt 0:00:48]} Qb4 {[%emt 0:01:37]} 21. Qa3 {[%emt 0:15:30]} Qb6 {[%emt 0:03:23]} 22. Kh2 {[%emt 0:01:15]} Rc8 {[%emt 0:01:31]} 23. Rf3 {[%emt 0:01:18]} a6 {[%emt 0:04:31]} 24. Nf5 {[%emt 0:12:19]} Rcd8 {[%emt 0:02:06]} 25. Nd4 {[%emt 0:14:11]} g5 {[%emt 0:03:04]} 26. fxg5 {[%emt 0:02:03]} Nxg5 {[%emt 0:00:39]} 27. Rf6 {[%emt 0:00:18]} Qc7 {[%emt 0:00:24]} 28. Qg3 {[%emt 0:07:42]} Ne4 {[%emt 0:00:49]} 29. Qf4 {[%emt 0:01:26]} Nxf6 {[%emt 0:00:58]} 30. Qxf6 {[%emt 0:00:10]} Rfe8 {[%emt 0:01:17]} 31. Re1 {[%emt 0:00:51]} Re7 {[%emt 0:04:25]} 32. Nf5 {[%emt 0:00:36]} Re6 {[%emt 0:00:32]} 33. Qg7# {[%emt 0:00:09]} 1-0

[Event "EYCC Girls U10 2021"]
[Site "Tornelo"]
[Date "2021.10.15"]
[Round "1.7"]
[White "Nahapetyan, Ani"]
[Black "Sokolova, Regina"]
[Result "0-1"]
[ECO "B13"]
[WhiteElo "1075"]
[BlackElo "1364"]
[Annotator "NA"]
[PlyCount "65"]
[EventDate "2021.10.15"]
[EventType "swiss"]
[EventCountry "NET"]
[SourceTitle "playchess.com"]
[Source "ChessBase"]
[SourceQuality "1"]
[TimeControl "5400+30"]

1. e4 {[%emt 0:00:30]} c6 {[%emt 0:00:35]} 2. d4 {[%emt 0:00:06]} d5 {[%emt 0:00:03]} 3. exd5 {[%emt 0:00:16]} cxd5 {[%emt 0:00:03]} 4. c3 {[%emt 0:00:10]} Nc6 {[%emt 0:00:04]} 5. Bd3 {[%emt 0:00:08]} Qc7 {[%emt 0:00:08]} 6. h3 {[%emt 0:00:26]} Nf6 {[%emt 0:00:13]} 7. Nf3 {[%emt 0:00:27]} g6 {[%emt 0:01:59]} 8. Be3 {[%emt 0:02:48]} Bf5 {[%emt 0:02:16]} 9. Bxf5 {[%emt 0:02:32]} gxf5 {[%emt 0:00:06]} 10. Qc1 {[%emt 0:01:42]} e6 {[%emt 0:02:56]} 11. Na3 {[%emt 0:05:27]} a6 {[%emt 0:05:46]} 12. c4 {[%emt 0:01:57]} Bb4+ {[%emt 0:11:14]} 13. Kf1 {[%emt 0:02:39]} Bxa3 {[%emt 0:09:49]} 14. bxa3 {[%emt 0:00:21]} dxc4 {[%emt 0:00:22]} 15. Bf4 {[%emt 0:01:06]} Qd7 {[%emt 0:06:22]} 16. Qxc4 {[%emt 0:02:01]} Qd5 {[%emt 0:00:31]} 17. Qxd5 {[%emt 0:03:11]} Nxd5 {[%emt 0:03:23]} 18. Bh2 {[%emt 0:05:58]} f6 {[%emt 0:02:23]} 19. Re1 {[%emt 0:01:14]} Kf7 {[%emt 0:00:21]} 20. Ke2 {[%emt 0:02:36]} Nc3+ {[%emt 0:01:36]} 21. Kd3 {[%emt 0:00:13]} Ne4 {[%emt 0:00:43]} 22. Re2 {[%emt 0:02:11]} Rhd8 {[%emt 0:01:14]} 23. Bc7 {[%emt 0:05:50]} Rdc8 {[%emt 0:00:52]} 24. d5 {[%emt 0:20:20]} Rxc7 {[%emt 0:00:37]} 25. dxc6 {[%emt 0:01:11]} Rxc6 {[%emt 0:00:18]} 26. Ke3 {[%emt 0:01:43]} Rd8 {[%emt 0:00:52]} 27. Rb1 {[%emt 0:04:22]} b5 {[%emt 0:02:07]} 28. Rb4 {[%emt 0:01:54]} Nc3 {[%emt 0:02:21]} 29. Rd2 {[%emt 0:06:04]} Rxd2 {[%emt 0:01:53]} 30. Kxd2 {[%emt 0:00:05]} Ne4+ {[%emt 0:00:24]} 31. Ke3 {[%emt 0:00:14]} Rc3+ {[%emt 0:00:39]} 32. Ke2 {[%emt 0:01:26]} Rxa3 {[%emt 0:00:40]} 33. Rb2 {[%emt 0:03:53]} 0-1